fUSD/lending_fUSD_20250514
["ID","MTS","AMOUNT","RATE_DAILY","PERIOD"]
[361049153,1747216232316,-1000.0,0.00010299,2]
[361049154,1747216232326,-250.0,0.00010299,2]
[361049155,1747216232335,-170.06,0.00010328,2]
[361049156,1747216232345,-167.50883804,0.0001036,2]
[361049157,1747216232354,-433.11,0.00010373,2]
[361049158,1747216232365,-682.23,0.00010535,2]
[361049159,1747216232374,-301.55,0.00010557,2]
[361049160,1747216232384,-184.48740083,0.000107,2]
[361049161,1747216237677,-519.47259917,0.000107,2]
[361049162,1747216237688,-1000.0,0.00010899,2]
[361049163,1747216237698,-184.0,0.00010899,2]
[361049164,1747216237707,-2195.05520002,0.00010899,2]
[361049165,1747216237719,-678.94076821,0.00010899,2]
[361049166,1747216237747,-1085.9649538,0.00010899,2]
[361049167,1747216237785,-1302.66754437,0.00010899,2]
[361049168,1747216237796,-2713.7505336,0.00010899,2]
[361049169,1747216237805,-271.21711473,0.00010899,2]
[361049170,1747216237815,-603.97131285,0.00010899,2]
[361049171,1747216237824,-150.0,0.00010899,2]
[361049172,1747216237833,-203.01376083,0.00010899,2]
[361049173,1747216237843,-475.36401656,0.000109,2]
[361049174,1747216237854,-2616.96133254,0.000109,2]
[361049175,1747216237865,-440.0,0.000109,2]
[361049176,1747216237909,-636.10140926,0.000109,2]
[361049177,1747216237920,-5480.66314164,0.000109,2]
[361049178,1747216237930,-2386.4687,0.000109,2]
[361049179,1747216237941,-310.3625,0.000109,2]
[361049180,1747216237950,-186.94986538,0.000109,2]
[361049181,1747216237960,-167.54927764,0.000109,2]
[361049182,1747216237970,-172.85706745,0.000109,2]
[361049183,1747216237980,-476.29780985,0.00010959,2]
[361049184,1747216237989,-1680.0,0.00010969,2]
[361049185,1747216237999,-420.0,0.00010969,2]
[361049187,1747216238008,-250.0,0.0001097,2]
[361049188,1747216238017,-500.0,0.00010973,2]
[361049190,1747216238027,-500.0,0.00010973,2]
[361049192,1747216238037,-500.0,0.00010973,2]
[361049194,1747216238047,-500.0,0.00010973,2]
[361049195,1747216238056,-500.0,0.00010973,2]
[361049197,1747216238066,-3041.778,0.00010973,2]
[361049199,1747216238076,-158.793,0.00010973,2]
[361049201,1747216238085,-223.15929473,0.0001099,2]
[361049202,1747216238095,-3232.95260332,0.00010995,2]
[361049203,1747216238107,-2378.1,0.00010995,2]
[361049205,1747216238119,-272.80967872,0.00010995,2]
[361049218,1747216238234,-10445.0,0.00010995,2]
[361049220,1747216238246,-1983.39697639,0.00010995,2]
[361049240,1747216238436,-445.88936934,0.00010995,2]
[361049242,1747216238447,-47982.29158587,0.00010995,2]
[361049260,1747216238607,-3586.85908103,0.00010995,2]
[361049272,1747216240270,-20955.00012026,0.00010995,2]
[361049273,1747216240483,-3304.89609505,0.00010995,2]
[361049274,1747216240495,-857.60468355,0.00010995,2]
[361049275,1747216240589,-1007.5722947,0.00010995,2]
[361049276,1747216240601,-3688.30518068,0.00010995,2]
[361049277,1747216240610,-60253.79848821,0.00010996,2]
[361049278,1747216240620,-400.0,0.00010997,2]
[361049279,1747216240629,-400.0,0.00010997,2]
[361049280,1747216240639,-105808.66384607,0.00010998,2]
[361049281,1747216240654,-154549.0941416,0.00010998,2]
[361049282,1747216240663,-400.0,0.00010998,2]
[361049283,1747216240673,-400.0,0.00010998,2]
[361049284,1747216240683,-400.0,0.00010998,2]
[361049285,1747216240694,-450.0,0.00010998,2]
[361049286,1747216240704,-450.0,0.00010998,2]
[361049287,1747216240714,-400.0,0.00010998,2]
[361049288,1747216240724,-450.0,0.00010998,2]
[361049289,1747216240733,-450.0,0.00010998,2]
[361049290,1747216240742,-400.0,0.00010998,2]
[361049291,1747216240752,-400.0,0.00010998,2]
[361049293,1747216240761,-525.04,0.00010998,2]
[361049294,1747216240770,-450.0,0.00010998,2]
[361049295,1747216240780,-450.0,0.00010998,2]
[361049296,1747216240790,-400.0,0.00010998,2]
[361049297,1747216240799,-400.0,0.00010998,2]
[361049298,1747216240807,-400.0,0.00010998,2]
[361049299,1747216240817,-450.0,0.00010998,2]
[361049300,1747216240826,-441.99719575,0.00010998,2]
[361049301,1747216240835,-400.0,0.00010998,2]
[361049303,1747216240844,-450.0,0.00010998,2]
[361049305,1747216240854,-450.0,0.00010998,2]
[361049307,1747216240863,-400.0,0.00010998,2]
[361049309,1747216240872,-400.0,0.00010998,2]
[361049311,1747216240881,-400.0,0.00010998,2]
[361049312,1747216240890,-450.0,0.00010998,2]
[361049313,1747216240899,-450.0,0.00010998,2]
[361049314,1747216240909,-400.0,0.00010998,2]
[361049315,1747216240918,-400.0,0.00010998,2]
[361049316,1747216240927,-480.44,0.00010998,2]
[361049317,1747216240937,-400.0,0.00010998,2]
[361049318,1747216240947,-400.0,0.00010998,2]
[361049319,1747216240957,-400.0,0.00010998,2]
[361049320,1747216240966,-450.0,0.00010998,2]
[361049321,1747216240975,-400.0,0.00010998,2]
[361049322,1747216240984,-450.0,0.00010998,2]
[361049323,1747216240994,-400.0,0.00010998,2]
[361049324,1747216241003,-450.0,0.00010998,2]
[361049325,1747216241012,-400.0,0.00010998,2]
[361049326,1747216241021,-450.0,0.00010998,2]
[361049327,1747216241031,-400.0,0.00010998,2]
[361049328,1747216241040,-400.0,0.00010998,2]
[361049329,1747216241049,-400.0,0.00010998,2]
[361049330,1747216241058,-400.71,0.00010998,2]
[361049331,1747216241068,-400.0,0.00010998,2]
[361049332,1747216241077,-450.0,0.00010998,2]
[361049333,1747216241087,-452.52,0.00010998,2]
[361049334,1747216241096,-450.0,0.00010998,2]
[361049335,1747216241105,-500.8,0.00010998,2]
[361049336,1747216241115,-450.0,0.00010998,2]
[361049337,1747216241124,-456.04402487,0.00010998,2]
[361049338,1747216241133,-199.11023304,0.00010998,2]
[361049339,1747216241142,-450.0,0.00010998,2]
[361049340,1747216241153,-350.28521154,0.00010998,2]
[361049341,1747216241162,-400.0,0.00010998,2]
[361049342,1747216241172,-400.0,0.00010998,2]
[361049343,1747216241181,-400.0,0.00010998,2]
[361049344,1747216241191,-400.0,0.00010998,2]
[361049345,1747216241200,-400.0,0.00010998,2]
[361049346,1747216241210,-414.060864,0.00010998,2]
[361049347,1747216241220,-400.0,0.00010998,2]
[361049348,1747216241231,-400.0,0.00010998,2]
[361049349,1747216241240,-400.0,0.00010998,2]
[361049350,1747216241249,-400.0,0.00010998,2]
[361049351,1747216241259,-400.0,0.00010998,2]
[361049352,1747216241268,-400.0,0.00010998,2]
[361049353,1747216241277,-408.4,0.00010998,2]
[361049354,1747216241286,-400.0,0.00010998,2]
[361049355,1747216241296,-500.0,0.00010998,2]
[361049356,1747216241305,-400.0,0.00010998,2]
[361049357,1747216241315,-400.0,0.00010998,2]
[361049358,1747216241325,-400.0,0.00010998,2]
[361049359,1747216241334,-400.0,0.00010998,2]
[361049360,1747216241343,-400.0,0.00010998,2]
[361049361,1747216241353,-411.88,0.00010998,2]
[361049362,1747216241362,-400.0,0.00010998,2]
[361049363,1747216241371,-400.0,0.00010998,2]
[361049364,1747216241381,-400.0,0.00010998,2]
[361049365,1747216241390,-357.61529326,0.00010998,2]
[361049366,1747216241411,-42.38470674,0.00010998,2]
[361049367,1747216241420,-400.0,0.00010998,2]
[361049368,1747216241430,-500.0,0.00010998,2]
[361049369,1747216241442,-400.0,0.00010998,2]
[361049370,1747216241451,-400.0,0.00010998,2]
[361049371,1747216241460,-400.0,0.00010998,2]
[361049372,1747216241470,-400.0,0.00010998,2]
[361049373,1747216241479,-400.0,0.00010998,2]
[361049374,1747216241489,-400.0,0.00010998,2]
[361049375,1747216241498,-400.0,0.00010998,2]
[361049376,1747216241507,-450.0,0.00010998,2]
[361049377,1747216241516,-400.0,0.00010998,2]
[361049378,1747216241526,-400.0,0.00010998,2]
[361049379,1747216241536,-400.0,0.00010998,2]
[361049380,1747216241547,-400.0,0.00010998,2]
[361049381,1747216241556,-400.0,0.00010998,2]
[361049382,1747216241566,-358.46463949,0.00010998,2]
[361049383,1747216241575,-400.0,0.00010998,2]
[361049384,1747216241585,-215.41974819,0.00010998,2]
[361049385,1747216241594,-400.0,0.00010998,2]
[361049386,1747216241603,-218.73702369,0.00010998,2]
[361049387,1747216241613,-450.0,0.00010998,2]
[361049388,1747216241622,-400.0,0.00010998,2]
[361049389,1747216241631,-1313.67,0.00010998,2]
[361049390,1747216241644,-400.0,0.00010998,2]
[361049391,1747216241656,-400.0,0.00010998,2]
[361049392,1747216241665,-248.40115635,0.00010998,2]
[361049393,1747216241675,-295.87442019,0.00010998,2]
[361049406,1747216243273,-400.02942458,0.00010997,2]
[361049407,1747216243283,-104.12557981,0.00010998,2]
[361049408,1747216243292,-3953.72,0.00010998,2]
[361049409,1747216243300,-450.0,0.00010998,2]
[361049410,1747216243309,-400.0,0.00010998,2]
[361049411,1747216243317,-195.21889603,0.00010998,2]
[361049412,1747216243327,-476.28559815,0.00010998,2]
[361049413,1747216243336,-1689.14,0.00010998,2]
[361049414,1747216243346,-400.0,0.00010998,2]
[361049415,1747216243355,-3461.2,0.00010998,2]
[361049416,1747216243364,-640.69,0.00010998,2]
[361049417,1747216243373,-450.0,0.00010998,2]
[361049418,1747216243383,-412.28,0.00010998,2]
[361049419,1747216243392,-324.41825783,0.00010998,2]
[361049420,1747216243402,-2586.02,0.00010998,2]
[361049421,1747216243411,-245.75514454,0.00010998,2]
[361049422,1747216243421,-400.0,0.00010998,2]
[361049423,1747216243430,-12724.73,0.00010998,2]
[361049424,1747216243439,-400.0,0.00010998,2]
[361049425,1747216243448,-404.47606977,0.00010998,2]
[361049426,1747216243458,-2969.66,0.00010998,2]
[361049427,1747216243467,-400.0,0.00010998,2]
[361049428,1747216243477,-400.0,0.00010998,2]
[361049429,1747216243486,-400.0,0.00010998,2]
[361049430,1747216243496,-400.0,0.00010998,2]
[361049431,1747216243506,-400.0,0.00010998,2]
[361049432,1747216243515,-450.0,0.00010998,2]
[361049433,1747216243524,-400.0,0.00010998,2]
[361049434,1747216243533,-400.0,0.00010998,2]
[361049435,1747216243543,-400.0,0.00010998,2]
[361049436,1747216243552,-203.64406575,0.00010998,2]
[361049437,1747216243562,-400.0,0.00010998,2]
[361049438,1747216243571,-7561.39,0.00010998,2]
[361049439,1747216243581,-974.95,0.00010998,2]
[361049440,1747216243590,-400.0,0.00010998,2]
[361049441,1747216243600,-400.0,0.00010998,2]
[361049442,1747216243610,-400.0,0.00010998,2]
[361049443,1747216243619,-400.0,0.00010998,2]
[361049444,1747216243628,-1802.4,0.00010998,2]
[361049445,1747216243637,-400.0,0.00010998,2]
[361049446,1747216243649,-400.0,0.00010998,2]
[361049447,1747216243659,-2098.05,0.00010998,2]
[361049448,1747216243668,-1108.12,0.00010998,2]
[361049449,1747216243678,-400.0,0.00010998,2]
[361049450,1747216243688,-618.0,0.00010998,2]
[361049451,1747216243698,-400.0,0.00010998,2]
[361049452,1747216243707,-3371.67,0.00010998,2]
[361049453,1747216243718,-2004.71,0.00010998,2]
[361049454,1747216243727,-407.62979356,0.00010998,2]
[361049455,1747216243736,-9944.77,0.00010998,2]
[361049456,1747216243745,-271.56500004,0.00010998,2]
[361049457,1747216243755,-1131.65,0.00010998,2]
[361049458,1747216243766,-10545.72,0.00010998,2]
[361049459,1747216243775,-400.0,0.00010998,2]
[361049460,1747216243784,-400.0,0.00010998,2]
[361049461,1747216243793,-400.0,0.00010998,2]
[361049462,1747216243803,-2673.24,0.00010998,2]
[361049464,1747216243813,-400.0,0.00010998,2]
[361049466,1747216243822,-400.0,0.00010998,2]
[361049467,1747216243831,-400.0,0.00010998,2]
[361049468,1747216243840,-1727.63,0.00010998,2]
[361049469,1747216243849,-153.02723757,0.00010998,2]
[361049470,1747216243867,-246.97276243,0.00010998,2]
[361049471,1747216243876,-400.0,0.00010998,2]
[361049472,1747216243886,-627.02916837,0.00010998,2]
[361049473,1747216243898,-24.12083163,0.00010998,2]
[361049474,1747216243908,-502.69,0.00010998,2]
[361049475,1747216243917,-874.8,0.00010998,2]
[361049476,1747216243926,-400.0,0.00010998,2]
[361049477,1747216243936,-400.0,0.00010998,2]
[361049478,1747216243945,-720.96,0.00010998,2]
[361049479,1747216243955,-1402.39,0.00010998,2]
[361049480,1747216243964,-450.0,0.00010998,2]
[361049481,1747216243973,-617.46,0.00010998,2]
[361049482,1747216243983,-450.0,0.00010998,2]
[361049483,1747216243992,-354.43552343,0.00010998,2]
[361049484,1747216244001,-7218.48,0.00010998,2]
[361049485,1747216244011,-446.44,0.00010998,2]
[361049486,1747216244020,-400.0,0.00010998,2]
[361049487,1747216244030,-2385.37,0.00010998,2]
[361049488,1747216244039,-612.97,0.00010998,2]
[361049489,1747216244048,-400.0,0.00010998,2]
[361049490,1747216244057,-400.0,0.00010998,2]
[361049491,1747216244066,-1635.67,0.00010998,2]
[361049492,1747216244076,-400.0,0.00010998,2]
[361049493,1747216244085,-400.0,0.00010998,2]
[361049494,1747216244094,-565.78,0.00010998,2]
[361049495,1747216244103,-400.0,0.00010998,2]
[361049496,1747216244112,-400.0,0.00010998,2]
[361049497,1747216244122,-1307.99,0.00010998,2]
[361049498,1747216244131,-400.0,0.00010998,2]
[361049499,1747216244140,-836.34,0.00010998,2]
[361049500,1747216244150,-400.0,0.00010998,2]
[361049501,1747216244159,-400.0,0.00010998,2]
[361049502,1747216244169,-400.0,0.00010998,2]
[361049503,1747216244179,-5072.57,0.00010998,2]
[361049504,1747216244190,-248.87797839,0.00010998,2]
[361049505,1747216244213,-151.12202161,0.00010998,2]
[361049506,1747216244222,-1339.27,0.00010998,2]
[361049507,1747216244233,-400.0,0.00010998,2]
[361049508,1747216244242,-496.06,0.00010998,2]
[361049509,1747216244252,-1510.22120555,0.00010998,2]
[361049510,1747216244273,-707.675,0.00010998,2]
[361049515,1747216246182,-1680.51379445,0.00010998,2]
[361049516,1747216246193,-400.0,0.00010998,2]
[361049517,1747216246202,-400.0,0.00010998,2]
[361049518,1747216246212,-953.61508132,0.00010998,2]
[361049519,1747216246236,-268.987887,0.00010998,2]
[361049520,1747216246291,-6041.66703168,0.00010998,2]
[361049521,1747216246301,-450.0,0.00010998,2]
[361049522,1747216246311,-400.0,0.00010998,2]
[361049523,1747216246321,-400.0,0.00010998,2]
[361049524,1747216246330,-1410.58,0.00010998,2]
[361049525,1747216246342,-400.0,0.00010998,2]
[361049526,1747216246351,-800.62,0.00010998,2]
[361049527,1747216246361,-12524.63,0.00010998,2]
[361049528,1747216246370,-742.58,0.00010998,2]
[361049529,1747216246380,-400.0,0.00010998,2]
[361049530,1747216246390,-2520.35496842,0.00010998,2]
[361049531,1747216246419,-632.53503158,0.00010998,2]
[361049532,1747216246429,-400.0,0.00010998,2]
[361049533,1747216246439,-590.32498842,0.00010998,2]
[361049534,1747216246614,-995.01,0.00010998,2]
[361049535,1747216246667,-418.08,0.00010998,2]
[361049537,1747216381911,300.0,9.97e-05,2]
[361049538,1747216452359,150.0,9.966e-05,7]
[361049539,1747216472358,500.0,9.97e-05,2]
[361049540,1747216472418,500.0,9.97e-05,2]
[361049541,1747216472469,500.0,9.97e-05,2]
[361049542,1747216472538,500.0,9.97e-05,2]
[361049543,1747216472585,367.04344519,9.97e-05,2]
[361049544,1747216630446,658.51604097,9.919e-05,2]
[361049545,1747216982563,150.0,9.965e-05,2]
[361049546,1747217073239,500.0,9.965e-05,2]
[361049547,1747217073304,500.0,9.965e-05,2]
[361049548,1747217073366,500.0,9.965e-05,2]
[361049549,1747217073435,500.0,9.965e-05,2]
[361049550,1747217073500,22.11740422,9.965e-05,2]
[361049565,1747217404615,265.06,9.94e-05,2]
[361049566,1747217432331,-300.0,9.962e-05,2]
[361049567,1747217432342,-86.98,9.962e-05,2]
[361049568,1747217432354,-447.14101808,9.962e-05,2]
[361049569,1747217432491,-665.87898192,9.962e-05,2]
[361049570,1747217432502,-300.0,9.962e-05,2]
[361049571,1747217432511,-150.0,9.963e-05,2]
[361049572,1747217432521,-500.0,9.963e-05,2]
[361049573,1747217432531,-500.0,9.963e-05,2]
[361049574,1747217432541,-104.12099408,9.963e-05,2]
[361049575,1747217432553,-395.87900592,9.963e-05,2]
[361049576,1747217432564,-500.0,9.963e-05,2]
[361049577,1747217432575,-500.0,9.963e-05,2]
[361049578,1747217432585,-500.0,9.963e-05,2]
[361049579,1747217432594,-500.0,9.963e-05,2]
[361049580,1747217432605,-500.0,9.963e-05,2]
[361049581,1747217432615,-500.0,9.963e-05,2]
[361049582,1747217432624,-500.0,9.963e-05,2]
[361049583,1747217432634,-500.0,9.963e-05,2]
[361049584,1747217432643,-500.0,9.963e-05,2]
[361049585,1747217432652,-500.0,9.963e-05,2]
[361049586,1747217432661,-500.0,9.963e-05,2]
[361049587,1747217432670,-500.0,9.963e-05,2]
[361049588,1747217432679,-500.0,9.963e-05,2]
[361049589,1747217432688,-500.0,9.963e-05,2]
[361049590,1747217432697,-500.0,9.963e-05,2]
[361049591,1747217432706,-500.0,9.963e-05,2]
[361049593,1747217432715,-500.0,9.963e-05,2]
[361049594,1747217432724,-500.0,9.963e-05,2]
[361049595,1747217432734,-500.0,9.963e-05,2]
[361049596,1747217432743,-500.0,9.963e-05,2]
[361049597,1747217432752,-500.0,9.963e-05,2]
[361049598,1747217432761,-500.0,9.963e-05,2]
[361049599,1747217432770,-500.0,9.963e-05,2]
[361049600,1747217432779,-500.0,9.963e-05,2]
[361049601,1747217432788,-500.0,9.963e-05,2]
[361049602,1747217432797,-500.0,9.963e-05,2]
[361049603,1747217432806,-500.0,9.963e-05,2]
[361049604,1747217432815,-264.33415976,9.963e-05,2]
[361049605,1747217432824,-500.0,9.963e-05,2]
[361049606,1747217432833,-500.0,9.963e-05,2]
[361049607,1747217432842,-500.0,9.963e-05,2]
[361049608,1747217432851,-500.0,9.963e-05,2]
[361049609,1747217432860,-500.0,9.963e-05,2]
[361049610,1747217432869,-500.0,9.963e-05,2]
[361049611,1747217432878,-500.0,9.963e-05,2]
[361049612,1747217432887,-500.0,9.963e-05,2]
[361049613,1747217432896,-500.0,9.963e-05,2]
[361049615,1747217432906,-500.0,9.963e-05,2]
[361049617,1747217432915,-500.0,9.963e-05,2]
[361049619,1747217432924,-500.0,9.963e-05,2]
[361049621,1747217432934,-376.43341598,9.963e-05,2]
[361049623,1747217432943,-500.0,9.963e-05,2]
[361049625,1747217432953,-190.31,9.967e-05,2]
[361049627,1747217432962,-650.6,9.972e-05,2]
[361049629,1747217432971,-471.15,9.988e-05,2]
[361049631,1747217432980,-162.14,9.991e-05,2]
[361049633,1747217432991,-311.2,0.00010002,2]
[361049635,1747217433001,-1000.0,0.00010235,2]
[361049637,1747217433011,-6717.4972,0.000108,2]
[361049639,1747217433024,-167.43,0.00010838,2]
[361049640,1747217433034,-1522.5238,0.00010861,2]
[361049643,1747217433045,-407.93726836,0.00010894,2]
[361049644,1747217433056,-165.213,0.00010894,2]
[361049646,1747217433066,-3178.51,0.00010894,2]
[361049648,1747217433076,-43006.1692,0.00010895,2]
[361049651,1747217433087,-1000.0,0.00010897,2]
[361049653,1747217433098,-2500.0,0.00010897,2]
[361049654,1747217433107,-500.0,0.00010897,2]
[361049656,1747217433117,-432.7863,0.00010897,2]
[361049658,1747217433127,-5943.5736,0.00010897,2]
[361049660,1747217433136,-272.2098,0.00010897,2]
[361049662,1747217433145,-581.57609028,0.00010897,2]
[361049664,1747217433155,-186.94986537,0.000109,2]
[361049666,1747217433164,-213.6395001,0.000109,2]
[361049668,1747217433174,-10790.5112828,0.000109,2]
[361049670,1747217433184,-420.0,0.00010958,2]
[361049672,1747217433194,-1680.0,0.00010958,2]
[361049674,1747217433204,-420.0,0.00010958,2]
[361049676,1747217433214,-333.40846689,0.00010959,2]
[361049678,1747217433224,-241.0,0.00010959,2]
[361049680,1747217433234,-250.0,0.00010959,2]
[361049682,1747217433244,-250.0,0.0001096,2]
[361049684,1747217433253,-250.0,0.0001096,2]
[361049686,1747217433263,-500.0,0.00010973,2]
[361049688,1747217433272,-500.0,0.00010973,2]
[361049690,1747217433281,-500.0,0.00010973,2]
[361049692,1747217433291,-500.0,0.00010973,2]
[361049694,1747217433300,-223.15929474,0.0001099,2]
[361049696,1747217433309,-954.9,0.00010996,2]
[361049698,1747217433319,-170.263537,0.00010996,2]
[361049700,1747217433328,-174.547772,0.00010996,2]
[361049702,1747217433336,-6466.82,0.00010996,2]
[361049704,1747217433346,-246.513459,0.00010996,2]
[361049706,1747217433355,-400.0,0.00010996,2]
[361049708,1747217433365,-400.0,0.00010996,2]
[361049710,1747217433375,-525.04,0.00010996,2]
[361049712,1747217433385,-785.65,0.00010996,2]
[361049714,1747217433395,-957.76,0.00010996,2]
[361049716,1747217433405,-400.0,0.00010996,2]
[361049718,1747217433414,-400.0,0.00010996,2]
[361049720,1747217433424,-4434.01,0.00010996,2]
[361049722,1747217433434,-400.0,0.00010996,2]
[361049724,1747217433443,-3054.05,0.00010996,2]
[361049726,1747217433453,-1398.84,0.00010996,2]
[361049728,1747217433463,-400.0,0.00010996,2]
[361049729,1747217433472,-1197.68,0.00010996,2]
[361049732,1747217433482,-1714.39,0.00010996,2]
[361049733,1747217433492,-400.0,0.00010996,2]
[361049735,1747217433502,-400.0,0.00010996,2]
[361049737,1747217433512,-429.69,0.00010996,2]
[361049739,1747217433521,-400.0,0.00010996,2]
[361049741,1747217433531,-1084.5,0.00010996,2]
[361049743,1747217433541,-646.53,0.00010996,2]
[361049745,1747217433551,-416.99,0.00010996,2]
[361049747,1747217433561,-400.0,0.00010996,2]
[361049749,1747217433571,-624.02,0.00010996,2]
[361049751,1747217433581,-1690.85,0.00010996,2]
[361049753,1747217433590,-400.0,0.00010996,2]
[361049755,1747217433600,-924.56,0.00010996,2]
[361049757,1747217433610,-800.18,0.00010996,2]
[361049759,1747217433621,-729.01,0.00010996,2]
[361049761,1747217433630,-1343.96,0.00010996,2]
[361049763,1747217433640,-400.0,0.00010996,2]
[361049765,1747217433651,-400.0,0.00010996,2]
[361049767,1747217433662,-500.0,0.00010996,2]
[361049769,1747217433672,-475.39,0.00010996,2]
[361049771,1747217433682,-1266.84,0.00010996,2]
[361049773,1747217433692,-1978.15,0.00010996,2]
[361049775,1747217433702,-3735.97,0.00010996,2]
[361049777,1747217433712,-400.0,0.00010996,2]
[361049779,1747217433723,-430.88,0.00010996,2]
[361049781,1747217433734,-400.0,0.00010996,2]
[361049783,1747217433745,-400.0,0.00010996,2]
[361049785,1747217433755,-400.0,0.00010996,2]
[361049787,1747217433765,-400.0,0.00010996,2]
[361049789,1747217433775,-2261.02,0.00010996,2]
[361049791,1747217433785,-12002.77,0.00010996,2]
[361049793,1747217433795,-1031.32,0.00010996,2]
[361049795,1747217433805,-400.0,0.00010996,2]
[361049797,1747217433815,-1331.06,0.00010996,2]
[361049799,1747217433826,-1978.81,0.00010996,2]
[361049800,1747217433836,-400.0,0.00010996,2]
[361049801,1747217433845,-3048.33,0.00010996,2]
[361049802,1747217433855,-400.0,0.00010996,2]
[361049803,1747217433864,-400.0,0.00010996,2]
[361049804,1747217433875,-9194.78,0.00010996,2]
[361049805,1747217433884,-608.06,0.00010996,2]
[361049806,1747217433894,-400.0,0.00010996,2]
[361049807,1747217433904,-1451.27,0.00010996,2]
[361049808,1747217433914,-400.0,0.00010996,2]
[361049809,1747217433923,-2207.01,0.00010996,2]
[361049810,1747217433933,-1648.34,0.00010996,2]
[361049811,1747217433942,-400.0,0.00010996,2]
[361049812,1747217433952,-400.0,0.00010996,2]
[361049813,1747217433961,-74.9255818,0.00010996,2]
[361049814,1747217434502,-325.0744182,0.00010996,2]
[361049815,1747217434512,-400.0,0.00010996,2]
[361049816,1747217434521,-400.0,0.00010996,2]
[361049817,1747217434531,-400.0,0.00010996,2]
[361049818,1747217434541,-290.2905091,0.00010996,2]
[361049819,1747217434562,-525.7094909,0.00010996,2]
[361049820,1747217434572,-676.7,0.00010996,2]
[361049821,1747217434582,-513.62,0.00010996,2]
[361049822,1747217434592,-400.0,0.00010996,2]
[361049823,1747217434602,-839.13,0.00010996,2]
[361049824,1747217434612,-1989.71,0.00010996,2]
[361049825,1747217434622,-514.35,0.00010996,2]
[361049826,1747217434632,-400.0,0.00010996,2]
[361049827,1747217434642,-400.0,0.00010996,2]
[361049828,1747217434652,-403.21241318,0.00010997,2]
[361049829,1747217434661,-400.0,0.00010997,2]
[361049830,1747217434671,-400.0,0.00010997,2]
[361049831,1747217434681,-386.20331229,0.00010997,2]
[361049832,1747217434692,-400.0,0.00010997,2]
[361049833,1747217434702,-416.18,0.00010997,2]
[361049834,1747217434712,-400.0,0.00010997,2]
[361049835,1747217434722,-400.0,0.00010997,2]
[361049836,1747217434732,-400.0,0.00010997,2]
[361049837,1747217434743,-400.0,0.00010997,2]
[361049838,1747217434753,-400.0,0.00010997,2]
[361049839,1747217434763,-400.0,0.00010997,2]
[361049840,1747217434773,-400.0,0.00010997,2]
[361049841,1747217434783,-460.37,0.00010997,2]
[361049842,1747217434792,-400.0,0.00010997,2]
[361049843,1747217434802,-400.0,0.00010997,2]
[361049844,1747217434811,-711.64,0.00010997,2]
[361049845,1747217434821,-486.81,0.00010997,2]
[361049846,1747217434831,-295.54415986,0.00010997,2]
[361049847,1747217434840,-400.0,0.00010997,2]
[361049848,1747217434849,-400.0,0.00010997,2]
[361049849,1747217434859,-400.0,0.00010997,2]
[361049850,1747217434868,-400.0,0.00010997,2]
[361049851,1747217434879,-400.0,0.00010997,2]
[361049852,1747217434888,-658.57,0.00010997,2]
[361049853,1747217434899,-400.0,0.00010997,2]